bitfinex/quotes_ETHUSD_20241030
["timestamp","ask_amount","ask_price","bid_price","bid_amount"]
[1730302839037,3.72309,2686.0,2685.8,0.7986]
[1730302839340,3.72309,2686.0,2685.4,6.72372]
[1730302839341,3.72309,2686.0,2685.5,0.7986]
[1730302839499,3.72309,2686.0,2685.5,2.08477]
[1730302839840,3.72343,2685.7,2685.5,0.7986]
[1730302840030,3.72323,2685.9,2685.5,0.7986]
[1730302840222,3.72335,2685.8,2685.5,0.7986]
[1730302840422,3.72344,2685.7,2685.5,0.7986]
[1730302840638,3.72324,2685.9,2685.2,4.52271]
[1730302840838,3.7235,2685.7,2685.2,0.7986]
[1730302841142,3.7237,2685.5,2685.2,0.7986]
[1730302841716,3.7237,2685.5,2685.3,0.06526287]
[1730302841910,3.7235,2685.7,2685.3,0.06526287]
[1730302842228,3.72324,2685.9,2685.4,0.0744751]
[1730302842427,3.72268,2686.3,2685.6,0.7986]
[1730302842629,3.72224,2686.6,2686.0,3.7229]
[1730302842840,0.8286,2686.9,2686.4,3.72238]
[1730302843041,4.11051864,2687.7,2686.4,3.72238]
[1730302843042,0.8286,2687.2,2686.4,0.07444437]
[1730302843240,3.72162,2687.0,2686.5,0.06461221]
[1730302843709,7.44335,2687.0,2686.5,0.06461221]
[1730302843914,3.72162,2687.0,2686.6,0.75092922]
[1730302844113,3.72162,2687.0,2686.7,0.06450382]
[1730302844429,3.72177,2686.9,2686.7,0.06450382]
[1730302845433,3.72157,2687.1,2686.7,0.06450382]
[1730302845629,0.8286,2687.2,2686.7,1.31686212]
[1730302845827,3.72168,2687.0,2686.7,0.86310382]
[1730302846027,3.72189,2686.8,2686.7,0.06450382]
[1730302846327,3.72177,2686.9,2686.7,0.06450382]
[1730302847635,3.7217,2687.0,2686.7,0.06450382]
[1730302847867,3.7217,2687.0,2686.7,0.51827612]
[1730302848938,3.72178,2686.9,2686.7,0.51827612]
[1730302849249,3.72189,2686.8,2686.7,0.51827612]
[1730302849446,3.72189,2686.8,2686.7,0.06450382]
[1730302849875,3.72189,2686.8,2686.4,0.7986]
[1730302850079,3.72178,2686.9,2686.7,0.0643659]
[1730302850230,3.72178,2686.9,2686.4,4.52099]
[1730302850435,3.72178,2686.9,2686.8,0.06431171]
[1730302850664,3.72178,2686.9,2686.4,4.52099]
[1730302850665,3.72178,2686.9,2686.4,3.72239]
[1730302850849,3.72131,2687.3,2686.9,0.7986]
[1730302851147,3.72142,2687.2,2687.0,0.06419609]
[1730302851354,3.72148,2687.1,2687.0,0.06419609]
[1730302851612,3.72108,2687.4,2687.0,0.06419609]
[1730302851741,3.72127,2687.3,2687.0,0.06419609]
[1730302851947,3.72108,2687.4,2687.0,0.06419609]
[1730302852450,3.72108,2687.4,2687.0,0.5226497]
[1730302853182,3.72148,2687.2,2687.0,0.06419609]
[1730302854269,3.72148,2687.1,2687.0,0.06419609]
[1730302854648,3.72148,2687.1,2686.6,4.47756]
[1730302854849,3.72148,2687.1,2687.0,0.06419609]
[1730302855046,3.72148,2687.1,2686.6,4.4775]
[1730302855251,3.72148,2687.1,2687.0,0.06419609]
[1730302855465,3.72148,2687.1,2686.7,0.5221987]
[1730302855694,3.72141,2687.2,2687.0,0.06419609]
[1730302855848,3.72141,2687.2,2686.7,0.59663065]
[1730302856184,3.72141,2687.2,2686.8,4.22929306]
[1730302856377,3.72141,2687.2,2686.8,4.29359751]
[1730302857585,3.7214,2687.2,2686.9,0.7986]
[1730302857883,3.7214,2687.2,2686.9,0.86285027]
[1730302858083,3.7214,2687.2,2686.9,0.06425027]
[1730302858459,7.44283,2687.2,2686.9,0.06425027]
[1730302858662,3.72148,2687.1,2686.9,0.06425027]
[1730302858850,3.72148,2687.1,2686.9,0.5734726]
[1730302859253,7.44306,2687.1,2686.9,0.06425027]
[1730302859548,7.44306,2687.1,2686.7,0.7986]
[1730302859882,3.72173,2687.0,2686.7,0.7986]
[1730302860396,3.72241,2686.5,2686.1,0.7949]
[1730302860690,0.7867,2686.5,2685.8,4.51818]
[1730302860854,3.72245,2686.4,2685.9,0.451818]
[1730302861047,3.72275,2686.2,2685.9,0.451818]
[1730302861248,0.7867,2686.5,2685.8,0.7949]
[1730302861453,3.72312,2686.0,2685.6,0.7986]
[1730302861787,3.72284,2686.2,2685.7,3.79784009]
[1730302861962,3.72284,2686.2,2685.7,4.98680989]
[1730302862565,3.72284,2686.2,2685.7,4.9123498]
[1730302862989,3.72284,2686.2,2685.8,0.07445746]
[1730302863476,3.72284,2686.2,2685.7,4.9123498]
[1730302863675,3.72284,2686.2,2685.8,0.07445748]
[1730302864405,3.723,2686.1,2685.7,1.1889698]
[1730302864568,3.72307,2686.0,2685.6,0.7986]
[1730302864765,3.72328,2685.8,2685.6,0.7986]
[1730302864961,3.72342,2685.7,2685.3,0.782]
[1730302865162,3.72342,2685.7,2685.1,4.50624]
[1730302865398,3.72342,2685.7,2685.2,7.69487705]
[1730302865803,3.72343,2685.7,2685.2,11.41897705]
[1730302865963,3.72343,2685.7,2685.2,7.41897705]
[1730302866164,3.72351,2685.7,2685.2,3.69487705]
[1730302866977,3.72356,2685.6,2685.2,3.69487705]
[1730302867491,3.72332,2685.8,2685.2,3.69487705]
[1730302867803,3.72332,2685.8,2685.3,0.44768771]
[1730302868910,3.72344,2685.7,2685.2,3.69487705]
[1730302869199,3.72357,2685.6,2685.1,0.782]
[1730302869374,3.72342,2685.7,2685.1,4.47687705]
[1730302869577,4.49966,2686.0,2685.1,0.782]
[1730302869917,4.49966,2686.0,2685.0,555.115752]
[1730302869918,3.72385,2685.4,2685.0,555.115752]
[1730302870580,3.72405,2685.3,2685.0,555.115752]
[1730302871519,0.7776,2685.5,2685.0,558.55910548]
[1730302871811,0.7776,2685.5,2685.1,0.05937611]
[1730302872778,4.50132,2685.5,2685.1,0.05937611]
[1730302873069,3.72399,2685.3,2685.1,0.05937611]
[1730302873777,8.22512,2685.5,2685.1,0.05937611]
[1730302873976,0.7776,2685.5,2685.1,3.75425316]
[1730302874171,4.5013,2685.5,2685.1,3.75425316]
[1730302874417,4.50133,2685.5,2685.1,3.75425316]
[1730302875290,0.7776,2685.5,2685.1,3.75425316]
[1730302876301,4.5013,2685.5,2685.1,3.75425316]
[1730302877424,3.72399,2685.3,2685.1,0.05937611]
[1730302877717,3.72411,2685.2,2685.1,0.05937611]
[1730302878126,4.50541,2685.2,2685.1,0.05937611]
[1730302878330,7.50541,2685.2,2685.1,0.05937611]
[1730302880132,8.05541,2685.2,2685.1,0.05937611]
[1730302884626,3.7813,2685.2,2685.1,0.05937611]
[1730302886259,4.51218,2685.8,2685.1,3.75425316]
[1730302886551,3.72343,2685.7,2685.1,3.75425316]
[1730302887465,4.51216,2685.8,2685.1,3.75425316]
[1730302887835,4.51216,2685.8,2685.3,3.57431414]
[1730302888021,6.72345,2685.7,2685.3,3.57431414]
[1730302888223,6.72345,2685.7,2685.4,0.059528]
[1730302889663,3.7237,2685.5,2685.4,0.059528]
[1730302890034,3.72401,2685.3,2685.0,555.115752]
[1730302890359,6.72425,2685.1,2685.0,555.115752]
[1730302890654,7.50905,2685.1,2685.0,555.115752]
[1730302892066,8.05905,2685.1,2685.0,555.115752]
[1730302893873,8.05905,2685.1,2685.0,536.92236888]
[1730302893874,11.60951595,2685.1,2685.0,536.92236888]
[1730302894078,8.00665841,2685.1,2685.0,530.70309037]
[1730302894541,11.58097255,2685.1,2685.0,528.77767654]
[1730302894750,11.58097255,2685.1,2685.0,518.94447654]
[1730302894966,11.58097255,2685.1,2685.0,513.35787654]
[1730302895165,8.00665841,2685.1,2685.0,511.49567654]
[1730302896156,11.58097255,2685.1,2685.0,502.18467654]
[1730302896362,11.58097255,2685.1,2685.0,484.7368889]
[1730302896363,11.23920286,2685.1,2685.0,484.7368889]
[1730302896544,12.21615226,2685.1,2685.0,484.7368889]
[1730302897070,12.21615226,2685.1,2685.0,478.76384591]
[1730302897363,12.21615226,2685.1,2685.0,477.21884861]
[1730302897689,12.21615226,2685.1,2685.0,476.87012906]
[1730302897983,21.13315226,2685.1,2685.0,469.1164293]
[1730302898329,12.21615226,2685.1,2685.0,469.1164293]
[1730302898777,20.84142786,2685.1,2685.0,389.13750857]
[1730302898956,20.84142786,2685.1,2685.0,369.11772085]
[1730302899434,20.84142786,2685.1,2685.0,363.66265685]
[1730302899634,20.84142786,2685.1,2685.0,339.25175685]
[1730302899835,20.84142786,2685.1,2685.0,333.53015685]
[1730302900152,20.84142786,2685.1,2685.0,333.43115685]
[1730302900347,20.84142786,2685.1,2685.0,327.83664693]
[1730302900571,20.84142786,2685.1,2685.0,325.78222283]
[1730302900941,20.84142786,2685.1,2685.0,314.60111291]
[1730302901139,20.84142786,2685.1,2685.0,314.29111291]
[1730302901340,20.84142786,2685.1,2685.0,307.06166901]
[1730302901580,20.84142786,2685.1,2685.0,291.55844998]
[1730302901755,20.84142786,2685.1,2685.0,290.59308177]
[1730302902076,20.84142786,2685.1,2685.0,279.41197185]
[1730302902464,12.60504269,2685.1,2685.0,273.81746193]
[1730302902883,12.60504269,2685.1,2685.0,271.95526193]
[1730302903051,12.60504269,2685.1,2685.0,268.23086193]
[1730302903399,12.60504269,2685.1,2685.0,267.26086293]
[1730302903603,13.17680302,2685.1,2685.0,267.26086293]
[1730302904080,13.17680302,2685.1,2685.0,265.39866293]
[1730302904283,17.09380302,2685.1,2685.0,259.05566393]
[1730302904575,17.09380302,2685.1,2685.0,247.29602063]
[1730302904576,19.54620302,2685.1,2685.0,247.29602063]
[1730302904784,19.54620302,2685.1,2685.0,241.70015412]
[1730302904993,10.89426075,2685.1,2685.0,236.11355412]
[1730302905157,15.05744269,2685.1,2685.0,236.11355412]
[1730302905359,15.62920302,2685.1,2685.0,235.58845412]
[1730302905666,15.24031259,2685.1,2685.0,232.46115412]
[1730302905981,19.54615628,2685.1,2685.0,225.27181213]
[1730302906288,19.54615628,2685.1,2685.0,219.67594613]
[1730302906493,19.54615628,2685.1,2685.0,219.07764613]
[1730302906848,19.54615628,2685.1,2685.0,217.21544613]
[1730302907145,19.45253216,2685.1,2685.0,213.49104613]
[1730302907752,19.45253216,2685.1,2685.0,202.38610383]
[1730302907961,19.45253216,2685.1,2685.0,196.79950383]
[1730302908167,19.51717518,2685.1,2685.0,195.76817171]
[1730302908387,19.51717518,2685.1,2685.0,194.12183611]
[1730302908861,19.51717518,2685.1,2685.0,190.60549815]
[1730302909183,19.51717518,2685.1,2685.0,180.14252808]
[1730302909491,19.51717518,2685.1,2685.0,173.52852775]
[1730302909492,23.68035712,2685.1,2685.0,173.52852775]
[1730302909653,23.68035712,2685.1,2685.0,166.75240975]
[1730302909985,19.51717518,2685.1,2685.0,161.16580975]
[1730302910656,19.51717518,2685.1,2685.0,150.06086745]
[1730302910986,19.51717518,2685.1,2685.0,143.47463045]
[1730302911190,19.51717518,2685.1,2685.0,142.19289534]
[1730302911734,21.75117518,2685.1,2685.0,129.86581198]
[1730302911988,21.75117518,2685.1,2685.0,110.60246428]
[1730302912189,22.33485994,2685.1,2685.0,106.87393823]
[1730302912358,22.33485994,2685.1,2685.0,101.54585303]
[1730302912555,22.33485994,2685.1,2685.0,91.6137038]
[1730302912769,22.33485994,2685.1,2685.0,44.24082063]
[1730302912770,24.17109471,2685.1,2685.0,44.24082063]
[1730302913090,22.33485994,2685.1,2685.0,6.96746915]
[1730302913293,0.02,2682.6,2682.4,0.8229]
[1730302913470,0.02,2682.6,2682.0,4.96048194]
[1730302913471,0.01,2682.2,2682.0,4.96048194]
[1730302914791,0.02,2682.2,2681.7,4.16318194]
[1730302915095,0.02,2682.2,2681.8,0.7986]
[1730302917117,0.02,2682.4,2682.0,0.7945]
[1730302917270,0.01,2682.2,2682.0,0.7945]
[1730302918362,0.01,2682.4,2682.0,0.7945]
[1730302918363,0.02,2682.4,2682.0,0.7945]
[1730302918762,0.01,2682.2,2682.0,0.7945]
[1730302919877,0.01,2682.1,2682.0,0.7945]
[1730302920508,0.01,2682.1,2682.0,0.84755291]
[1730302920806,0.01,2682.1,2682.0,0.05305291]
[1730302920965,0.01,2682.1,2681.7,0.7974]
[1730302921312,0.01,2682.1,2681.8,0.05142328]
[1730302921605,0.01,2682.1,2681.7,4.96058194]
[1730302921805,0.01,2682.1,2681.8,0.05142328]
[1730302922007,0.01,2682.1,2681.7,4.96058194]
[1730302922008,0.01,2682.1,2681.7,0.7974]
[1730302922173,0.01,2682.1,2681.8,0.05142328]
[1730302922375,3.01,2682.1,2681.7,0.7974]
[1730302922576,3.01,2682.1,2681.8,0.05142328]
[1730302922773,3.01,2682.1,2681.7,0.7974]
[1730302922774,0.02,2681.9,2681.7,0.7974]
[1730302923021,0.02,2681.9,2681.8,0.05142328]
[1730302923205,0.02,2681.9,2681.7,0.7974]
[1730302923206,3.02,2681.9,2681.7,0.7974]
[1730302923537,0.02,2681.9,2681.7,0.7974]
[1730302923908,3.72823,2682.3,2681.8,0.05182622]
[1730302923909,0.02,2682.1,2681.8,0.05182622]
[1730302924204,7.62009057,2682.4,2681.8,0.05182622]
[1730302924205,7.62009057,2682.4,2681.9,1.6517]
[1730302924533,0.01,2682.5,2682.2,1.6517]
[1730302924892,0.01,2682.5,2682.3,0.05155433]
[1730302925227,0.01,2682.5,2682.2,1.6517]
[1730302925541,3.01,2682.5,2682.3,0.05155613]
[1730302925738,0.01,2682.5,2682.3,0.05155613]
[1730302925894,0.01,2682.5,2682.2,1.6517]
[1730302926765,0.01,2682.5,2682.3,0.05155613]
[1730302927102,0.01,2682.5,2682.2,1.6517]
[1730302927430,0.02,2682.7,2682.2,1.6517]
[1730302927931,5.29932,2683.1,2682.2,1.6517]
[1730302927932,0.01,2683.2,2682.5,1.6517]
[1730302928133,0.01,2683.3,2682.8,1.6517]
[1730302928489,0.02,2683.5,2683.0,1.6517]
[1730302928997,0.02,2683.5,2683.0,5.23463066]
[1730302929197,0.02,2683.5,2683.1,0.04928217]
[1730302929934,3.74651,2683.5,2683.1,0.04928217]
[1730302930129,0.01,2683.4,2683.1,0.04928217]
[1730302930434,0.01,2683.4,2683.2,0.04922784]
[1730302930644,0.01,2683.6,2683.0,5.23463066]
[1730302930824,0.01,2683.6,2683.1,0.04928217]
[1730302931905,1.63684533,2683.9,2683.3,3.58293066]
[1730302931906,3.08464533,2683.9,2683.3,3.58293066]
[1730302932101,0.08464533,2683.9,2683.2,1.5167]
[1730302932325,0.07464533,2683.9,2683.5,1.5167]
[1730302932529,0.01,2683.6,2683.5,1.5167]
[1730302935247,0.01,2683.6,2682.9,1.5494]
[1730302936451,0.01,2683.7,2683.0,1.5695]
[1730302937954,3.01,2683.7,2683.0,1.5695]
[1730302938343,0.01,2683.7,2683.0,1.5695]
[1730302938871,6.74593,2683.9,2683.0,1.5695]
[1730302939068,3.02,2683.9,2683.0,1.5695]
[1730302939372,6.74595,2683.9,2683.0,1.5695]
[1730302939583,3.02,2683.9,2683.0,1.5695]
[1730302939878,3.02,2683.9,2683.2,1.5271]
[1730302940239,0.01,2684.1,2683.4,1.5271]
[1730302940443,0.01,2684.1,2683.5,0.04703225]
[1730302940740,0.01,2684.1,2683.4,1.5271]
[1730302941235,0.01,2684.2,2683.4,1.5271]
[1730302941438,0.01,2684.2,2683.5,0.0470178]
[1730302941666,3.72575,2684.1,2683.6,1.5271]
[1730302941837,3.72607,2683.8,2683.7,0.04690917]
[1730302942175,3.72607,2683.8,2683.3,1.5271]
[1730302942483,5.24542,2683.9,2683.3,1.5271]
[1730302942680,3.0,2683.8,2683.3,1.5271]
[1730302942840,3.72623,2683.7,2683.4,0.04703241]
[1730302943177,6.72647,2683.5,2683.0,1.5271]
[1730302943380,3.0,2683.4,2683.0,1.5271]
[1730302943544,3.0,2683.4,2683.1,0.0471972]
[1730302944770,3.0,2683.6,2683.1,0.0471972]
[1730302944938,5.24553,2683.9,2683.2,1.5884]
[1730302944939,0.01,2683.9,2683.2,1.5884]
[1730302945439,0.01,2683.9,2683.3,0.04719145]
[1730302945640,0.01,2683.9,2683.2,1.5884]
[1730302945840,0.01,2683.9,2683.3,0.04719145]
[1730302946042,0.01,2683.9,2683.4,1.5884]
[1730302946277,0.01,2683.9,2683.5,0.04704849]
[1730302946843,0.01,2684.0,2683.5,0.04704849]
[1730302947264,0.01,2684.0,2683.4,1.5884]
[1730302948192,4.6174,2684.2,2683.5,0.04702322]
[1730302948351,3.01,2684.2,2683.4,1.5884]
[1730302949549,3.0,2684.1,2683.4,1.5884]
[1730302951266,6.72564,2684.1,2683.4,1.5884]
[1730302951647,6.67564,2684.1,2683.4,1.5884]
[1730302952054,3.73551,2684.2,2683.4,1.5884]
[1730302953398,7.46111,2684.2,2683.4,1.5884]
[1730302953600,3.0,2684.1,2683.4,1.5884]
[1730302953965,6.72564,2684.1,2683.4,1.5884]
[1730302957004,6.73552,2684.2,2683.4,1.5884]
[1730302957592,6.73552,2684.2,2683.5,0.04232822]
[1730302958000,6.73552,2684.2,2683.4,1.5884]
[1730302958294,3.0,2684.1,2683.4,1.5884]
[1730302958665,6.72566,2684.1,2683.4,1.5884]
[1730302959192,3.0,2684.1,2683.4,1.5884]
[1730302960400,6.72565,2684.1,2683.5,0.04232822]
[1730302960622,6.72565,2684.1,2683.4,1.5884]
[1730302961330,6.73558,2684.2,2683.4,1.5884]
[1730302961491,0.01,2684.1,2683.4,1.5884]
[1730302962004,3.0,2684.0,2683.4,1.5884]
[1730302962203,3.01,2684.1,2683.4,1.5884]
[1730302962807,0.01,2684.1,2683.4,1.5884]
[1730302963148,0.01,2684.1,2683.6,1.612]
[1730302963290,6.73552,2684.2,2683.6,1.612]
[1730302963492,3.0,2684.0,2683.6,1.612]
[1730302963691,0.01,2683.9,2683.4,1.612]
[1730302963933,3.0,2683.8,2683.4,1.612]
[1730302964523,3.0,2683.6,2683.4,1.612]
[1730302964727,3.0,2683.6,2682.6,1.6249]
[1730302964728,6.73635,2683.6,2682.6,1.6249]
[1730302965024,3.0,2683.4,2682.6,1.6249]
[1730302965225,3.0,2683.4,2682.7,0.04132847]
[1730302965541,6.72663,2683.4,2682.6,1.6249]
[1730302965692,3.0,2683.2,2682.6,1.6249]
[1730302966023,3.72704,2683.1,2682.7,0.03866518]
[1730302966391,3.72704,2683.1,2682.6,1.6249]
[1730302966392,3.0,2683.0,2682.6,1.6249]
[1730302966797,6.7269,2683.2,2682.6,1.6249]
[1730302966996,3.0,2683.2,2682.6,1.6249]
[1730302967406,3.0,2683.2,2682.7,0.03878614]
[1730302967812,6.72689,2683.2,2682.7,0.03878614]
[1730302968462,6.72689,2683.2,2682.6,1.6249]
[1730302969034,10.45389,2683.2,2682.6,1.6249]
[1730302969603,6.72689,2683.2,2682.6,1.6249]
[1730302969805,3.0,2683.0,2682.6,1.6249]
[1730302970204,3.72705,2683.1,2682.6,1.6249]
[1730302970205,3.0,2683.1,2682.6,1.6249]
[1730302971920,6.72705,2683.1,2682.6,1.6249]
[1730302972937,6.72696,2683.2,2682.6,1.6249]
[1730302974246,3.0,2683.2,2682.6,1.6249]
[1730302975150,3.0,2683.3,2682.6,1.6249]
[1730302975649,2.68459886,2683.7,2682.8,1.5689]
[1730302975811,3.73621,2683.7,2682.8,1.5689]
[1730302976013,3.73621,2683.7,2683.0,1.5894]
[1730302976249,7.46252,2683.7,2683.0,1.5894]
[1730302976404,3.73621,2683.7,2683.1,0.03490335]
[1730302976609,3.73621,2683.7,2683.0,1.5894]
[1730302976905,3.73626,2683.7,2683.0,1.5894]
[1730302977110,0.01,2683.7,2683.0,1.5894]
[1730302977344,3.0,2683.7,2683.2,1.5894]
[1730302977653,3.12281095,2683.9,2683.2,1.5894]
[1730302977654,3.0,2683.8,2683.2,1.5894]
[1730302977817,3.0,2683.8,2683.3,0.03479469]
[1730302978018,3.72591,2684.0,2683.3,1.5891]
[1730302978019,2.67500734,2684.0,2683.3,1.5891]
[1730302978339,3.72559,2684.2,2683.4,0.03470614]
[1730302978340,2.67500734,2684.2,2683.4,0.03470614]
[1730302978543,2.67500734,2684.2,2683.5,1.5891]
[1730302978740,2.67500734,2684.3,2683.5,1.5891]
[1730302979041,2.67500734,2684.3,2683.7,1.5473]
[1730302979712,2.67500734,2684.4,2683.7,1.5473]
[1730302979910,2.67500734,2684.5,2683.8,0.03444567]
[1730302980233,6.92766533,2684.6,2683.9,1.5473]
[1730302980432,2.67500734,2684.7,2683.9,1.5473]
[1730302980631,2.67500734,2684.8,2683.9,1.5473]
[1730302980819,3.72487,2684.7,2684.1,1.5473]
[1730302981156,2.68500734,2684.9,2684.1,1.5473]
[1730302981344,3.73461,2684.9,2684.1,1.5473]
[1730302981566,3.72471,2684.8,2684.1,1.5473]
[1730302981769,0.01,2684.9,2684.1,1.5473]
[1730302982046,0.01,2684.9,2682.9,3.58794337]
[1730302982047,3.7254,2684.3,2683.3,1.5332]
[1730302982236,6.72549,2684.3,2683.3,1.5332]
[1730302982441,3.72552,2684.2,2683.5,1.5332]
[1730302982610,3.0,2684.1,2683.5,1.5332]
[1730302982816,3.0,2684.3,2683.6,0.03442289]
[1730302983045,6.40004734,2684.6,2683.0,4.34932465]
[1730302983046,2.67500734,2684.6,2683.4,1.6303]
[1730302983255,3.73471,2684.8,2683.6,1.6303]
[1730302983461,3.72489,2684.7,2683.6,1.6303]
[1730302983687,3.72517,2684.5,2683.7,1.6539371]
[1730302983963,3.72536,2684.3,2683.7,1.6539371]
[1730302984135,3.72566,2684.1,2683.7,1.6539371]
[1730302984334,3.0,2684.0,2683.7,1.6539371]
[1730302984730,3.0,2684.0,2683.7,1.6197]
[1730302985835,6.72551,2684.2,2683.7,1.6197]
[1730302986367,3.0,2684.0,2683.7,1.6197]
[1730302986535,3.57794337,2684.0,2682.9,1.5594]
[1730302986896,3.0,2683.8,2683.1,1.5594]
[1730302987629,3.0,2683.9,2683.1,1.5594]
[1730302987864,6.72537,2684.3,2683.2,1.5017]
[1730302988026,2.68500734,2684.4,2683.5,1.5017]
[1730302988027,3.0,2684.4,2683.5,1.5017]
[1730302988230,6.72495,2684.6,2683.5,1.5017]
[1730302988425,3.7251,2684.5,2683.6,1.53599141]
[1730302988833,3.0,2684.4,2683.6,1.53599141]
[1730302990162,6.72523,2684.4,2683.6,1.53599141]
[1730302990461,6.72523,2684.4,2683.6,1.5017]
[1730302990662,3.0,2684.5,2683.6,1.5017]
[1730302990868,6.7251,2684.5,2683.6,1.5017]
[1730302991162,6.7251,2684.5,2683.7,0.0342389]
[1730302991163,3.0,2684.3,2683.7,0.0342389]
[1730302991954,3.0,2684.5,2683.8,1.5804]
[1730302992153,3.0,2684.6,2683.8,1.61458459]
[1730302992341,6.72496,2684.6,2683.8,1.5804]
[1730302992553,3.7251,2684.5,2683.9,0.03413029]
[1730302992869,3.7251,2684.5,2683.8,1.5804]
[1730302992870,3.0,2684.4,2683.8,1.5804]
[1730302993372,6.72481,2684.7,2683.8,1.5804]
[1730302993967,3.0,2684.7,2683.8,1.5804]
[1730302994272,3.0,2684.7,2684.0,1.5143]
[1730302994474,3.0,2685.0,2684.0,1.5143]
[1730302994676,3.0,2685.0,2684.2,1.5143]
[1730302995131,3.0,2685.0,2684.3,0.03389511]
[1730302995449,3.0,2685.0,2684.4,1.5143]
[1730302995647,3.0,2685.0,2684.4,1.55055802]
[1730302996069,3.0,2685.0,2684.4,1.5143]
[1730302996575,3.0,2685.0,2684.5,1.55049986]
[1730302996747,3.0,2685.0,2684.5,1.5143]
[1730302996942,3.0,2685.0,2684.6,0.03614171]
[1730302997574,3.7246,2684.9,2684.5,1.5143]
[1730302997951,3.0,2684.8,2684.5,1.5143]
[1730302998685,3.0,2684.7,2684.5,1.5143]
[1730302999885,3.0,2685.0,2684.5,1.5143]
[1730303000092,3.72,2685.1,2684.5,1.5143]
[1730303000454,3.72,2685.1,2684.5,1.56306064]
[1730303001351,3.0,2685.0,2684.5,1.56306064]
[1730303002790,3.0,2685.0,2684.5,1.5143]
[1730303003088,3.0,2685.0,2684.5,1.56847849]
[1730303003468,6.72398,2685.3,2684.5,1.56847849]
[1730303003789,3.0,2685.3,2684.5,1.56847849]
[1730303004084,6.724,2685.3,2684.5,1.56847849]
[1730303004290,3.0,2685.3,2684.5,1.56847849]
[1730303004472,3.0,2685.5,2684.5,1.56847849]
[1730303004671,6.7237,2685.5,2684.5,1.56847849]
[1730303004876,3.0,2685.5,2684.6,1.6335]
[1730303005385,3.0,2685.8,2684.8,1.6335]
[1730303005579,3.0,2685.6,2684.8,1.6335]
[1730303007958,6.72363,2685.6,2684.8,1.6335]
[1730303008373,3.0,2685.6,2684.8,1.6335]
[1730303009409,3.72,2686.0,2685.0,1.5081]
[1730303010257,3.72316,2685.9,2685.0,1.5081]
[1730303010487,7.44301,2686.0,2685.0,1.5081]
[1730303010858,3.0,2685.9,2685.0,1.5081]
[1730303011761,6.72315,2685.9,2685.0,1.5081]
[1730303011974,3.0,2685.7,2685.0,1.5081]
[1730303012207,3.0,2685.6,2685.0,1.5081]
[1730303012402,0.06463928,2686.5,2685.3,1.5257]
[1730303012700,5.2759,2686.7,2685.3,1.5257]
[1730303012902,5.2659,2686.7,2685.6,1.5257]
[1730303013298,7.3644734,2686.8,2685.6,1.5257]
[1730303013614,7.29984337,2686.8,2685.6,1.5257]
[1730303013972,7.44415,2686.7,2685.6,1.5257]
[1730303014302,3.73203,2686.7,2685.6,1.5257]
[1730303014601,3.0,2686.5,2685.6,1.5257]
[1730303014759,3.0,2686.6,2685.6,1.5257]
[1730303015788,3.0,2686.4,2685.6,1.5257]
[1730303016289,3.0,2686.6,2685.6,1.5257]
[1730303016995,3.0,2686.7,2685.6,1.5257]
[1730303017380,3.0,2686.7,2685.7,1.532]
[1730303019491,3.0,2686.8,2685.7,1.532]
[1730303020288,14.92803394,2687.1,2685.9,1.5376]
[1730303020489,3.0,2687.0,2685.9,1.5376]
[1730303020705,3.72,2687.1,2686.0,3.72292]
[1730303020898,3.72,2687.1,2686.2,1.5376]
[1730303021082,3.72,2687.1,2686.3,1.5376]
[1730303021602,3.72082,2687.6,2686.3,1.612043]
[1730303021805,0.06462083,2687.9,2686.8,1.5376]
[1730303021806,3.78508083,2687.9,2686.8,1.5376]
[1730303021983,3.7206,2687.8,2686.8,1.5376]
[1730303022179,3.78508083,2687.9,2686.8,1.5376]
[1730303022180,0.06462083,2687.9,2686.8,1.5376]
[1730303022398,3.72055,2687.8,2686.8,1.5376]
[1730303022707,7.29819337,2688.0,2686.8,1.5376]
[1730303022881,3.72051,2687.8,2686.8,1.5376]
[1730303023076,7.29819337,2688.0,2686.8,1.5376]
[1730303023077,3.57794337,2688.0,2686.8,1.5376]
[1730303023277,7.4401,2688.1,2686.9,1.70582797]
[1730303023488,3.72072,2687.7,2686.9,1.6314]
[1730303023894,3.72051,2687.8,2686.9,1.6314]
[1730303024209,3.72044,2687.9,2686.9,1.6314]
[1730303024505,3.0,2687.7,2686.9,1.6314]
[1730303024707,6.72038,2687.9,2686.9,1.6314]
[1730303025004,3.72,2688.1,2687.1,1.6624]
[1730303025820,3.72,2688.1,2687.3,1.6624]
[1730303026115,7.44011,2688.1,2687.3,1.6624]
[1730303026267,6.72025,2688.0,2687.3,1.6624]
[1730303027573,3.0,2688.0,2687.3,1.6624]
[1730303031309,3.71972,2688.4,2687.3,1.6624]
[1730303031521,3.71961,2688.5,2687.5,1.5386]
[1730303031871,3.71978,2688.4,2687.5,1.5386]
[1730303032381,3.0,2688.3,2687.5,1.5386]
[1730303033427,3.0,2688.3,2687.5,2.05125434]
[1730303033590,3.0,2688.3,2687.6,1.628]
[1730303033911,6.71955,2688.5,2687.6,1.628]
[1730303034115,3.0,2688.5,2687.6,1.628]
[1730303034327,3.0,2688.5,2687.7,1.6128]
[1730303034328,6.71955,2688.5,2687.7,1.6128]
[1730303035290,3.0,2687.9,2687.7,1.6128]
[1730303035615,6.72051,2687.8,2687.7,1.6128]
[1730303036214,7.29792337,2688.2,2686.8,3.57794337]
[1730303036215,3.0,2687.6,2687.5,1.5858]
[1730303036638,6.72079,2687.6,2687.5,1.5858]
[1730303037617,3.0,2687.6,2687.5,1.5858]
[1730303037777,3.0,2687.7,2687.5,1.5858]